[Event "Coimbra Queima Fitas Open 2024"]
[Site "Coimbra"]
[Date "2024.04.28"]
[Round "7.5"]
[White "Gama, Edivaldo Pereira Da"]
[Black "Povshednyi, Ivan"]
[Result "1/2-1/2"]
[ECO "B50"]
[WhiteElo "2109"]
[BlackElo "2249"]
[Annotator "NA RC"]
[PlyCount "52"]
[EventDate "2024.04.23"]
[EventType "swiss"]
[EventCountry "POR"]
[SourceTitle "playchess.com"]
[Source "ChessBase"]
[SourceQuality "1"]
[TimeControl "5400+30"]

1. e4 {[%emt 0:00:00]} c5 {[%emt 0:00:15]} 2. Nf3 {[%emt 0:00:29]} d6 {[%emt 0:00:11]} 3. Bc4 {[%emt 0:00:14]} Nf6 {[%emt 0:00:37]} 4. e5 {[%emt 0:01:56]} dxe5 {[%emt 0:00:22]} 5. Nxe5 {[%emt 0:00:06]} e6 {[%emt 0:00:09]} 6. Nc3 {[%emt 0:01:12]} Be7 {[%emt 0:04:57]} 7. d3 {[%emt 0:00:24]} a6 {[%emt 0:01:09]} 8. a4 {[%emt 0:01:13]} Nbd7 {[%emt 0:01:14]} 9. Qe2 {[%emt 0:01:02]} Nxe5 {[%emt 0:02:46]} 10. Qxe5 {[%emt 0:00:03]} Qd6 {[%emt 0:06:55]} 11. Qe2 {[%emt 0:01:53]} Bd7 {[%emt 0:00:43]} 12. Be3 {[%emt 0:02:24]} Bc6 {[%emt 0:00:14]} 13. O-O {[%emt 0:00:31]} O-O {[%emt 0:00:51]} 14. Bg5 {[%emt 0:00:32]} h6 {[%emt 0:02:57]} 15. Bh4 {[%emt 0:00:40]} b6 {[%emt 0:02:48]} 16. Rfe1 {[%emt 0:03:36]} Rfe8 {[%emt 0:03:20]} 17. Ne4 {[%emt 0:03:32]} Nxe4 {[%emt 0:01:30]} 18. Bxe7 {[%emt 0:00:25]} Qxe7 {[%emt 0:00:07]} 19. dxe4 {[%emt 0:00:07]} Qb7 {[%emt 0:00:10]} 20. Bd3 {[%emt 0:01:16]} b5 {[%emt 0:03:25]} 21. axb5 {[%emt 0:00:18]} axb5 {[%emt 0:00:02]} 22. b3 {[%emt 0:02:27]} Red8 {[%emt 0:06:09]} 23. Rxa8 {[%emt 0:02:00]} Rxa8 {[%emt 0:00:03]} 24. Qe3 {[%emt 0:00:31]} Qe7 {[%emt 0:02:53]} 25. Qe2 {[%emt 0:01:35]} b4 {[%emt 0:03:43]} 26. Qe3 {[%emt 0:01:23]} Rd8 {[%emt 0:01:02]} 1/2-1/2

[Event "Coimbra Queima Fitas Open 2024"]
[Site "Coimbra"]
[Date "2024.04.28"]
[Round "7.6"]
[White "Ribeiro, Gustavo Martins Sant"]
[Black "Peixoto, Helio Ricardo Soutin"]
[Result "1-0"]
[ECO "A15"]
[WhiteElo "2226"]
[BlackElo "1959"]
[Annotator "TA"]
[PlyCount "85"]
[EventDate "2024.04.23"]
[EventType "swiss"]
[EventCountry "POR"]
[SourceTitle "playchess.com"]
[Source "ChessBase"]
[SourceQuality "1"]
[TimeControl "5400+30"]

{[%evp 17,85,4,17,-111,8,2,8,5,41,31,99,33,64,0,0,0,0,-2,34,-24,-18,-18,-22,-33,0,0,139,0,0,0,-8,-9,-9,-11,-18,-39,-45,-37,0,0,58,58,232,220,201,218,396,398,442,442,446,416,616,610,597,593,610,594,1141,1150,5355,1518,29991,29992,29995,29996,29996,29997,29997,29998]} 1. c4 {[%emt 0:00:06]} Nf6 {[%emt 0:00:09]} 2. Nf3 {[%emt 0:00:49]} g6 {[%emt 0:00:16]} 3. b3 {[%emt 0:00:52]} Bg7 {[%emt 0:00:26]} 4. Bb2 {[%emt 0:00:05]} d6 {[%emt 0:00:42]} 5. g3 {[%emt 0:00:26]} c5 {[%emt 0:00:28]} 6. Bg2 {[%emt 0:00:09]} Nc6 {[%emt 0:00:17]} 7. O-O {[%emt 0:00:07]} O-O {[%emt 0:00:26]} 8. d3 {[%emt 0:00:42]} e5 {[%emt 0:01:01]} 9. Nc3 {[%emt 0:00:19]} Ne8 {[%emt 0:01:07]} 10. Nd5 {[%emt 0:01:57] [#]} (10. Ne1 $11) 10... f5 {[%emt 0:02:55]} (10... e4 $1 $17 {[%cal Re4f3]} 11. Bxg7 exf3 12. Bxf8 fxg2 13. Kxg2 Kxf8) 11. Nd2 {[%emt 0:00:36]} Nc7 {[%emt 0:11:52]} 12. a3 {[%emt 0:04:55] The position is equal.} Ne6 {[%emt 0:06:27]} 13. b4 {[%emt 0:05:22]} f4 {[%emt 0:03:49]} (13... Ne7 $14) 14. Ne4 {[%emt 0:00:45]} (14. e3 $16) 14... Ng5 {[%emt 0:02:56]} 15. bxc5 {[%emt 0:03:35] White is more active.} (15. Nxg5 $14 Qxg5 16. b5) 15... Nxe4 $11 {[%emt 0:01:05]} 16. dxe4 {[%emt 0:00:23]} dxc5 {[%emt 0:01:13]} 17. Rb1 {[%emt 0:03:57]} Nd4 {[%emt 0:08:31]} 18. e3 {[%emt 0:01:02]} (18. Bc1 $14) 18... f3 $1 {[%emt 0:00:22]} 19. exd4 {[%emt 0:00:09]} fxg2 {[%emt 0:00:11]} 20. Kxg2 {[%emt 0:00:04]} cxd4 {[%emt 0:03:40]} 21. f4 {[%emt 0:05:21]} exf4 {[%emt 0:01:09]} (21... Qe8 $1 $11) 22. gxf4 {[%emt 0:01:01]} (22. Bxd4 $16 Qd7 23. Bxg7 (23. gxf4 Qh3+ 24. Kg1 Qg4+ 25. Kh1 Qxd1 $14) (23. Rxf4 Rxf4 24. Bxg7 Qe6 $16) 23... Qxg7 24. Qd3 (24. Rxf4 Be6 $16) (24. Nxf4 b6 $16)) 22... Qh4 {[%emt 0:00:20]} 23. Qf3 {[%emt 0:00:08] Prevents Bh3+} Bg4 {[%emt 0:02:16]} 24. Qg3 {[%emt 0:00:10]} (24. Qd3 {feels hotter.} Be6 25. Qg3 Qh5 26. Rbe1) 24... Qxg3+ {[%emt 0:00:20]} 25. hxg3 {[%emt 0:00:05]} Be2 {[%emt 0:01:33][%csl LRc4,LRf1]} 26. Rfc1 {[%emt 0:01:24]} Bd3 {[%emt 0:00:13][%csl LRb1,LRe4][%cal Ob7b5] And now ...b5! would win. A strong pair of Bishops.} 27. e5 {[%emt 0:00:11]} Bxb1 {[%emt 0:02:00]} 28. Rxb1 {[%emt 0:00:05]} b5 {[%emt 0:03:51]} 29. cxb5 $14 {[%emt 0:00:14]} Rfd8 $2 {[%emt 0:01:03] Loses the game.} ({Better is} 29... Rf7 $1 $14) 30. Ne7+ $18 {[%emt 0:00:04]} Kf7 {[%emt 0:00:16]} 31. Nc6 {[%emt 0:00:04][%csl LRd4,LRd8]} Rd5 $2 {[%emt 0:02:31]} (31... Rdc8 {keeps fighting.} 32. Bxd4 (32. Nxd4 Rc4 $14) 32... a6 33. e6+ Kxe6) 32. Bxd4 {[%emt 0:00:34]} ({And not} 32. Nxd4 Rc8 $11) 32... Bf8 {[%emt 0:00:25]} 33. Bxa7 {[%emt 0:00:16] Threatens to win with b6.} ({Don't play} 33. a4 Bc5 34. Bxc5 Rxc5 $18) 33... Bc5 {[%emt 0:02:22]} 34. b6 {[%emt 0:01:17]} Rd2+ {[%emt 0:02:09]} (34... Bxb6 $142 35. Rxb6 (35. Bxb6 Rxa3 36. Nd4 h5 $18) 35... Rd7) 35. Kh3 {[%emt 0:00:32] b7 is the strong threat.} Bxb6 {[%emt 0:00:24]} 36. Rxb6 {[%emt 0:00:16]} Rd7 {[%emt 0:02:54]} 37. Bb8 {[%emt 0:01:31]} Rd3 {[%emt 0:02:54] [#]} 38. e6+ $1 {[%emt 0:01:50]} Ke8 {[%emt 0:01:37]} (38... Kf6 39. Be5+) 39. Be5 {[%emt 0:00:59]} Rdxa3 {[%emt 0:00:58]} 40. Rb7 {[%emt 0:00:05] White mates.} Rc8 {[%emt 0:01:30]} 41. Re7+ {[%emt 0:00:05]} Kf8 {[%emt 0:00:28]} 42. Rf7+ {[%emt 0:00:03]} Ke8 {[%emt 0:00:36]} 43. Bd6 {[%emt 0:00:04] Weighted Error Value: White=0.24 (precise) /Black=0.56.  Loses game:     	---       	Black=1      Mistake:       	White=4     	Black=6      Inaccurate:     	---       	Black=7      OK:         	White=9     	Black=8      Best:        	White=3     	Black=2      Strong:       	---       	Black=1} 1-0

[Event "Coimbra Queima Fitas Open 2024"]
[Site "Coimbra"]
[Date "2024.04.28"]
[Round "7.7"]
[White "Goncalves, Samuel Jesus Pereira"]
[Black "Santos, Tomas Afonso Pires D"]
[Result "0-1"]
[ECO "D71"]
[WhiteElo "2190"]
[BlackElo "1904"]
[Annotator "RC"]
[PlyCount "122"]
[EventDate "2024.04.23"]
[EventType "swiss"]
[EventCountry "POR"]
[SourceTitle "playchess.com"]
[Source "ChessBase"]
[SourceQuality "1"]
[TimeControl "5400+30"]

1. d4 {[%emt 0:01:40]} Nf6 {[%emt 0:00:24]} 2. c4 {[%emt 0:00:02]} g6 {[%emt 0:00:07]} 3. g3 {[%emt 0:00:02]} Bg7 {[%emt 0:00:17]} 4. Bg2 {[%emt 0:00:05]} c5 {[%emt 0:00:08]} 5. d5 {[%emt 0:00:54]} O-O {[%emt 0:00:11]} 6. Nc3 {[%emt 0:00:03]} d6 {[%emt 0:00:10]} 7. Nf3 {[%emt 0:00:19]} e6 {[%emt 0:00:07]} 8. O-O {[%emt 0:00:04]} exd5 {[%emt 0:00:09]} 9. cxd5 {[%emt 0:00:05]} a6 {[%emt 0:01:05]} 10. a4 {[%emt 0:00:05]} Nbd7 {[%emt 0:01:37]} 11. Bf4 {[%emt 0:02:00]} Qc7 {[%emt 0:01:10]} 12. e4 {[%emt 0:05:58]} Nh5 {[%emt 0:02:49]} 13. Be3 {[%emt 0:01:29]} Rb8 {[%emt 0:00:18]} 14. a5 {[%emt 0:08:44]} b5 {[%emt 0:03:49]} 15. axb6 {[%emt 0:00:16]} Rxb6 {[%emt 0:00:12]} 16. Ra2 {[%emt 0:05:48]} Re8 {[%emt 0:05:01]} 17. Qc2 {[%emt 0:07:26]} Rb4 {[%emt 0:11:47]} 18. Bd2 {[%emt 0:20:45]} Nhf6 {[%emt 0:15:27]} 19. Re1 {[%emt 0:01:13]} Ng4 {[%emt 0:02:13]} 20. Nb1 {[%emt 0:08:11]} Rb8 {[%emt 0:03:43]} 21. Ba5 {[%emt 0:00:31]} Qa7 {[%emt 0:00:50]} 22. Nbd2 {[%emt 0:00:37]} Nde5 {[%emt 0:01:43]} 23. Nxe5 {[%emt 0:00:23]} Nxe5 {[%emt 0:00:08]} 24. h3 {[%emt 0:00:33]} Bd7 {[%emt 0:00:41]} 25. Kh2 {[%emt 0:07:25]} Bb5 {[%emt 0:04:00]} 26. Bf1 {[%emt 0:06:27]} c4 {[%emt 0:01:05]} 27. Kg2 {[%emt 0:00:52]} Nd3 {[%emt 0:04:12]} 28. Bxd3 {[%emt 0:00:26]} cxd3 {[%emt 0:00:09]} 29. Qc7 {[%emt 0:00:07]} Qxc7 {[%emt 0:06:43]} 30. Bxc7 {[%emt 0:00:02]} Rbc8 {[%emt 0:00:23]} 31. Bxd6 {[%emt 0:01:05]} Rc2 {[%emt 0:00:08]} 32. Bf4 {[%emt 0:00:22]} Bxb2 {[%emt 0:01:25]} 33. Rxb2 {[%emt 0:15:04]} Rxb2 {[%emt 0:00:22]} 34. e5 {[%emt 0:00:01]} a5 {[%emt 0:01:19]} 35. Ne4 {[%emt 0:02:02]} Ra8 {[%emt 0:16:27]} 36. e6 {[%emt 0:04:15]} fxe6 {[%emt 0:00:27]} 37. Nf6+ {[%emt 0:00:38]} Kf7 {[%emt 0:00:49]} 38. dxe6+ {[%emt 0:00:02]} Kxf6 {[%emt 0:00:59]} 39. Be5+ {[%emt 0:00:01]} Kxe6 {[%emt 0:00:10]} 40. Bxb2+ {[%emt 0:00:02]} Kd5 {[%emt 0:00:12]} 41. Kf3 {[%emt 0:01:54]} Rf8+ {[%emt 0:00:51]} 42. Ke3 {[%emt 0:00:07]} Re8+ {[%emt 0:00:21]} 43. Kd2 {[%emt 0:00:01]} Rxe1 {[%emt 0:00:09]} 44. Kxe1 {[%emt 0:00:02]} Kc4 {[%emt 0:00:11]} 45. Kd2 {[%emt 0:00:02]} Kb3 {[%emt 0:00:07]} 46. Be5 {[%emt 0:00:21]} a4 {[%emt 0:01:33]} 47. Kc1 {[%emt 0:02:31]} Kc4 {[%emt 0:01:22]} 48. Kd2 {[%emt 0:01:06]} a3 {[%emt 0:00:22]} 49. f4 {[%emt 0:00:40]} Kb3 {[%emt 0:03:53]} 50. Kc1 {[%emt 0:00:43]} Bc4 {[%emt 0:00:10]} 51. g4 {[%emt 0:00:24]} Ka4 {[%emt 0:01:11]} 52. Kd2 {[%emt 0:00:42]} Kb5 {[%emt 0:00:10]} 53. Bd6 {[%emt 0:01:24]} a2 {[%emt 0:00:10]} 54. Be5 {[%emt 0:00:01]} Kc5 {[%emt 0:00:08]} 55. Ke3 {[%emt 0:00:23]} Kd5 {[%emt 0:00:41]} 56. Bg7 {[%emt 0:00:12]} d2 {[%emt 0:01:08]} 57. Kxd2 {[%emt 0:00:11]} Ke4 {[%emt 0:00:06]} 58. Be5 {[%emt 0:00:20]} g5 {[%emt 0:00:11]} 59. Ke1 {[%emt 0:02:15]} gxf4 {[%emt 0:00:09]} 60. Bc3 {[%emt 0:00:13]} Kf3 {[%emt 0:00:07]} 61. g5 {[%emt 0:00:33]} Kg2 {[%emt 0:00:17]} 0-1

[Event "Coimbra Queima Fitas Open 2024"]
[Site "Coimbra"]
[Date "2024.04.28"]
[Round "7.8"]
[White "Faryma, Matviy"]
[Black "Dias, Ivo Rodrigues"]
[Result "0-1"]
[ECO "B11"]
[WhiteElo "1993"]
[BlackElo "2145"]
[Annotator "NA RC"]
[PlyCount "92"]
[EventDate "2024.04.23"]
[EventType "swiss"]
[EventCountry "POR"]
[SourceTitle "playchess.com"]
[Source "ChessBase"]
[SourceQuality "1"]
[TimeControl "5400+30"]

1. e4 {[%emt 0:00:13]} c6 {[%emt 0:09:03]} 2. Nf3 {[%emt 0:00:31]} d5 {[%emt 0:00:32]} 3. Nc3 {[%emt 0:00:09]} Bg4 {[%emt 0:00:24]} 4. h3 {[%emt 0:00:13]} Bxf3 {[%emt 0:00:07]} 5. Qxf3 {[%emt 0:00:07]} e6 {[%emt 0:00:11]} 6. d4 {[%emt 0:02:43]} dxe4 {[%emt 0:00:42]} 7. Qxe4 {[%emt 0:00:09]} Nf6 {[%emt 0:00:53]} 8. Qd3 {[%emt 0:00:19]} Nbd7 {[%emt 0:00:36]} 9. Be3 {[%emt 0:01:54]} Be7 {[%emt 0:00:54]} 10. Be2 {[%emt 0:00:31]} O-O {[%emt 0:00:45]} 11. g4 {[%emt 0:08:24]} Qa5 {[%emt 0:02:40]} 12. Bd2 {[%emt 0:00:50]} Rfd8 {[%emt 0:06:27]} 13. Ne4 {[%emt 0:07:22]} Qb6 {[%emt 0:00:47]} 14. Nxf6+ {[%emt 0:03:33]} Bxf6 {[%emt 0:13:21]} 15. c3 {[%emt 0:02:56]} Qxb2 {[%emt 0:04:02]} 16. O-O {[%emt 0:02:48]} e5 {[%emt 0:03:51]} 17. g5 {[%emt 0:02:06]} Be7 {[%emt 0:01:50]} 18. Be3 {[%emt 0:02:34]} exd4 {[%emt 0:16:07]} 19. cxd4 {[%emt 0:00:30]} Nc5 {[%emt 0:00:08]} 20. Qd1 {[%emt 0:01:05]} Ne6 {[%emt 0:03:44]} 21. Rb1 {[%emt 0:02:44]} Qxa2 {[%emt 0:01:29]} 22. Rxb7 {[%emt 0:00:07]} Bxg5 {[%emt 0:00:20]} 23. Bh5 {[%emt 0:01:10]} g6 {[%emt 0:01:20]} 24. Bg4 {[%emt 0:03:15]} Qd5 {[%emt 0:05:47]} 25. Qf3 {[%emt 0:09:53]} Qxf3 {[%emt 0:17:51]} 26. Bxf3 {[%emt 0:00:09]} Rd6 {[%emt 0:00:36]} 27. Ra1 {[%emt 0:05:05]} a5 {[%emt 0:00:31]} 28. Rb6 {[%emt 0:00:18]} Nxd4 {[%emt 0:00:27]} 29. Bxd4 {[%emt 0:00:22]} Rxd4 {[%emt 0:00:09]} 30. Rxc6 {[%emt 0:00:09]} Ra7 {[%emt 0:00:22]} 31. Rc5 {[%emt 0:02:57]} Bd2 {[%emt 0:01:16]} 32. Rd5 {[%emt 0:04:28]} Rxd5 {[%emt 0:00:37]} 33. Bxd5 {[%emt 0:00:02]} a4 {[%emt 0:00:17]} 34. Rd1 {[%emt 0:00:21]} Bg5 {[%emt 0:00:50]} 35. Ba2 {[%emt 0:00:35]} a3 {[%emt 0:00:16]} 36. Rd3 {[%emt 0:00:58]} Kg7 {[%emt 0:00:20]} 37. Kg2 {[%emt 0:00:17]} Be7 {[%emt 0:00:39]} 38. Rf3 {[%emt 0:00:22]} f5 {[%emt 0:00:16]} 39. Re3 {[%emt 0:00:31]} Rb7 {[%emt 0:00:59]} 40. Re6 {[%emt 0:00:41]} Bc5 {[%emt 0:00:41]} 41. Rc6 {[%emt 0:00:32]} Bxf2 {[%emt 0:00:23]} 42. Kf3 {[%emt 0:01:03]} Rb2 {[%emt 0:00:23]} 43. Bd5 {[%emt 0:00:38]} Bd4 {[%emt 0:01:05]} 44. h4 {[%emt 0:00:44]} a2 {[%emt 0:01:00]} 45. Ra6 {[%emt 0:01:57]} Rf2+ {[%emt 0:00:12]} 46. Kg3 {[%emt 0:00:12]} f4+ {[%emt 0:00:06]} 0-1

[Event "Coimbra Queima Fitas Open 2024"]
[Site "Coimbra"]
[Date "2024.04.28"]
[Round "7.10"]
[White "Goncalves, Lucas Jordao"]
[Black "Vasconcelos, Paulo Jorge Lopes De"]
[Result "1-0"]
[ECO "C55"]
[WhiteElo "1983"]
[BlackElo "2093"]
[Annotator "NA RC"]
[PlyCount "77"]
[EventDate "2024.04.23"]
[EventType "swiss"]
[EventCountry "POR"]
[SourceTitle "playchess.com"]
[Source "ChessBase"]
[SourceQuality "1"]
[TimeControl "5400+30"]

1. e4 {[%emt 0:00:45]} e5 {[%emt 0:00:07]} 2. Nf3 {[%emt 0:00:05]} Nc6 {[%emt 0:00:03]} 3. Bc4 {[%emt 0:00:06]} Nf6 {[%emt 0:00:05]} 4. d3 {[%emt 0:00:09]} h6 {[%emt 0:00:05]} 5. O-O {[%emt 0:00:19]} d6 {[%emt 0:00:04]} 6. c3 {[%emt 0:00:26]} g5 {[%emt 0:00:32]} 7. b4 {[%emt 0:04:48]} Bg7 {[%emt 0:00:29]} 8. Nbd2 {[%emt 0:09:47]} Ne7 {[%emt 0:00:48]} 9. Re1 {[%emt 0:02:09]} O-O {[%emt 0:00:26]} 10. Nf1 {[%emt 0:00:09]} Ng6 {[%emt 0:00:29]} 11. h3 {[%emt 0:07:46]} Be6 {[%emt 0:14:38]} 12. Bb3 {[%emt 0:00:33]} d5 {[%emt 0:00:50]} 13. Ng3 {[%emt 0:01:51]} Re8 {[%emt 0:00:33]} 14. Bb2 {[%emt 0:05:42]} Qd7 {[%emt 0:00:29]} 15. exd5 {[%emt 0:03:58]} Bxh3 {[%emt 0:05:04]} 16. Ba4 {[%emt 0:03:52]} b5 {[%emt 0:01:10]} 17. Bxb5 {[%emt 0:00:29]} Qxb5 {[%emt 0:00:07]} 18. gxh3 {[%emt 0:00:04]} Qd7 {[%emt 0:00:22]} 19. Kh2 {[%emt 0:29:11]} Nf4 {[%emt 0:09:31]} 20. Ng1 {[%emt 0:00:12]} g4 {[%emt 0:00:18]} 21. c4 {[%emt 0:01:25]} gxh3 {[%emt 0:00:18]} 22. f3 {[%emt 0:00:29]} h5 {[%emt 0:05:48]} 23. N1e2 {[%emt 0:05:28]} h4 {[%emt 0:00:20]} 24. Ne4 {[%emt 0:00:21]} Ng2 {[%emt 0:04:49]} 25. Rg1 {[%emt 0:00:48]} Nh5 {[%emt 0:00:38]} 26. Qf1 {[%emt 0:00:18]} Qf5 {[%emt 0:01:56]} 27. Qf2 {[%emt 0:10:07]} Qg6 {[%emt 0:05:45]} 28. Kxh3 {[%emt 0:02:10]} Ngf4+ {[%emt 0:02:34]} 29. Nxf4 {[%emt 0:01:09]} Qf5+ {[%emt 0:00:40]} 30. Rg4 {[%emt 0:00:32]} Nxf4+ {[%emt 0:00:27]} 31. Kh2 {[%emt 0:00:05]} Nxd3 {[%emt 0:01:03]} 32. Qe3 {[%emt 0:00:37]} Nxb2 {[%emt 0:02:03]} 33. Rag1 {[%emt 0:00:39]} Nxc4 {[%emt 0:00:26]} 34. Rxg7+ {[%emt 0:00:18]} Kf8 {[%emt 0:00:04]} 35. Qc5+ {[%emt 0:04:40]} Nd6 {[%emt 0:01:10]} 36. Nxd6 {[%emt 0:00:19]} Qf4+ {[%emt 0:00:43]} 37. Kh1 {[%emt 0:00:12]} Qxf3+ {[%emt 0:00:10]} 38. R1g2 {[%emt 0:00:07]} Qh3+ {[%emt 0:00:40]} 39. Kg1 1-0

[Event "Coimbra Queima Fitas Open 2024"]
[Site "Coimbra"]
[Date "2024.04.28"]
[Round "7.11"]
[White "Goncalves, Lucas Jordao"]
[Black "Ryabukhin, Roman"]
[Result "1-0"]
[ECO "E92"]
[WhiteElo "1983"]
[BlackElo "2047"]
[Annotator "TA"]
[PlyCount "111"]
[EventDate "2024.04.23"]
[EventType "swiss"]
[EventCountry "POR"]
[SourceTitle "playchess.com"]
[Source "ChessBase"]
[SourceQuality "1"]
[TimeControl "5400+30"]

{[%evp 21,111,10,17,15,13,7,10,12,31,7,39,-6,45,27,33,19,20,-3,24,14,22,0,20,18,22,4,35,37,31,38,33,-7,42,0,46,79,31,0,166,163,136,147,177,173,192,181,248,26,227,211,509,438,616,551,523,520,882,864,885,863,1190,1093,1900,1968,29979,29980,29980,29981,5714,1719,1579,1357,1187,1033,29963,29966,29965,29967,29967,29968,29968,29969,29970,29971,29971,29972,29971,29972,29972,29971,7333,6244]} 1. d4 {[%emt 0:00:04]} Nf6 {[%emt 0:00:08]} 2. Nf3 {[%emt 0:00:14]} g6 {[%emt 0:00:16]} 3. c4 {[%emt 0:05:19]} Bg7 {[%emt 0:00:32]} 4. Nc3 {[%emt 0:00:31]} d6 {[%emt 0:00:22]} 5. e4 {[%emt 0:01:35]} O-O {[%emt 0:01:00]} 6. Be2 {[%emt 0:01:38]} e5 {[%emt 0:02:27]} 7. d5 {[%emt 0:07:56]} a5 {[%emt 0:05:17]} 8. O-O {[%emt 0:03:49]} Nbd7 {[%emt 0:04:30]} 9. Ne1 {[%emt 0:01:16]} Nc5 {[%emt 0:01:05]} 10. f3 {[%emt 0:02:02]} Nh5 {[%emt 0:00:12]} 11. Be3 {[%emt 0:01:30]} b6 {[%emt 0:02:08]} 12. Nd3 {[%emt 0:01:57]} f5 {[%emt 0:00:43]} 13. b3 {[%emt 0:03:38][%cal Bb2b3,Bb3b4][%mdl 32]} f4 {[%emt 0:08:08]} 14. Bf2 {[%emt 0:00:36] The position is equal.} g5 {[%emt 0:00:44][%cal Bg6g5,Bg5g4][%mdl 32]} 15. a3 {[%emt 0:00:25]} Nf6 {[%emt 0:01:50]} 16. Qc2 {[%emt 0:05:29]} h5 {[%emt 0:03:20]} (16... g4 $11) 17. b4 {[%emt 0:02:07]} Nxd3 {[%emt 0:00:53]} 18. Bxd3 {[%emt 0:04:26]} g4 {[%emt 0:02:50]} 19. Bh4 {[%emt 0:09:07][%cal Oc4c5]} Kh8 {[%emt 0:11:27]} 20. Kh1 {[%emt 0:02:26][%cal Oc4c5]} Qd7 {[%emt 0:01:29]} 21. Qf2 {[%emt 0:10:38]} Rg8 {[%emt 0:03:32]} 22. c5 {[%emt 0:01:28]} gxf3 {[%emt 0:10:04]} 23. Qxf3 {[%emt 0:09:05]} Qf7 {[%emt 0:02:38]} 24. cxb6 {[%emt 0:00:49]} cxb6 {[%emt 0:02:23]} 25. Nb5 {[%emt 0:05:16]} Ne8 {[%emt 0:11:35]} 26. Qf2 {[%emt 0:04:47]} Rb8 {[%emt 0:01:03]} (26... Bf6 $11 {was preferrable.}) 27. Bd8 {[%emt 0:02:50][%cal Bh4d8,Bd8b6,Bb6a7][%mdl 32]} Bd7 {[%emt 0:10:12]} (27... Bf8 $11 {deserves consideration.}) 28. Bxb6 $14 {[%emt 0:03:35]} axb4 {[%emt 0:00:07]} 29. a4 {[%emt 0:00:10][%cal Ba3a4,Ba4b5,Bb5b6][%mdl 32]} Bxb5 $2 {[%emt 0:00:53] [#]} (29... Qg6 $11 {and Black stays safe.}) 30. axb5 $18 {[%emt 0:03:02]} (30. Bxb5 $6 Nf6 $14) 30... Nf6 {[%emt 0:00:24]} 31. Ba7 {[%emt 0:02:33] White is more active.} Rbc8 {[%emt 0:00:54]} 32. b6 {[%emt 0:01:24]} Rc3 {[%emt 0:00:40]} 33. Qe2 {[%emt 0:00:43]} Qe7 {[%emt 0:07:55]} (33... Bh6 {was called for.}) 34. h3 $2 {[%emt 0:00:40]} (34. Rf3 $18) 34... Qd7 $2 {[%emt 0:04:06] This move loses the game for Black.} (34... Bh6 $11) 35. Rf3 {[%emt 0:01:26]} Rgc8 $2 {[%emt 0:00:52]} (35... Qc8 36. Bb5 (36. Qb2 Nxd5 37. Rb1 Ne3 $16) 36... Rxf3 37. Qxf3 b3) 36. Bb5 {[%emt 0:01:08]} Rc1+ {[%emt 0:00:43]} (36... Qf7 $142 37. Rxc3 (37. Bc6 R8xc6 38. dxc6 Rxc6 $18) 37... Rxc3) 37. Rf1 {[%emt 0:00:36]} Rxf1+ {[%emt 0:00:05]} 38. Rxf1 {[%emt 0:00:09]} f3 {[%emt 0:01:26]} (38... Qf7 $142 39. Ba6 (39. Bc6 Qg6 $18) 39... Rd8) 39. Rxf3 {[%emt 0:00:44]} (39. Bxd7 $2 {perishes.} fxe2 40. Re1 Nxd7 $19) 39... Rc1+ {[%emt 0:00:25]} 40. Rf1 {[%emt 0:00:33]} Rxf1+ {[%emt 0:00:39]} 41. Qxf1 {[%emt 0:00:10]} Qb7 {[%emt 0:00:22]} 42. Bc6 {[%emt 0:00:20]} Nxe4 {[%emt 0:00:25]} 43. Bxb7 {[%emt 0:01:23]} Ng3+ {[%emt 0:00:01]} 44. Kg1 {[%emt 0:00:11]} Nxf1 {[%emt 0:00:16]} 45. Kxf1 {[%emt 0:00:35]} (45. Ba6 $142 Ng3 46. b7) 45... e4 {[%emt 0:00:20]} 46. Bc8 {[%emt 0:00:52] [#] Intending b7 and mate.} Bd4 {[%emt 0:00:20]} 47. Bf5 {[%emt 0:00:35]} e3 {[%emt 0:01:25]} 48. Bc2 {[%emt 0:00:31]} Kg7 {[%emt 0:00:08]} 49. Bb8 {[%emt 0:00:20]} Bxb6 {[%emt 0:00:51]} 50. Bxd6 {[%emt 0:00:12]} Ba5 {[%emt 0:00:32]} 51. Ke2 {[%emt 0:00:27]} Bb6 {[%emt 0:00:20]} 52. Bxb4 {[%emt 0:00:18]} Kf6 53. Be4 {[%emt 0:00:55]} Ke5 {[%emt 0:00:05]} 54. Bf3 {[%emt 0:00:08]} Kd4 55. Be7 {[%emt 0:00:35]} Ke5 {[%emt 0:00:48]} 56. Bg5 {[%emt 0:00:15] Weighted Error Value: White=0.24 (precise) /Black=0.79.  Loses game:     	---       	Black=2      Missed win:     	White=1     	---        Mistake:       	---       	Black=7      Inaccurate:     	White=4     	Black=3      OK:         	White=8     	Black=10     Best:        	White=1     	---} 1-0